Cogmind - Beta 13 @@@ ROGUE MODE // 2024.07.27 @ 23:00:34 Player: Johnny5001 Result: Destroyed by as-59552 with Assembled Blade Performance ------------- Evolutions (0) 0 Regions Visited (2) 400 Robots Destroyed (18) 90 Value Destroyed (403) 403 Prototype IDs (0) 0 Alien Tech Used (0) 0 Bonus (0) 0 TOTAL SCORE: 893 Bonus ------- None Cogmind --------- Core Integrity 0/250 Matter 37/300 Energy 100/100 System Corruption 0% Temperature Cool (0) Movement Flying (40) Location -10/Mines Parts ------- > --- POWER (1) -------- (None) > --- PROPULSION (2) --- Flight Unit > --- UTILITY (2) ------ (None) > --- WEAPON (2) ------- (None) > --- INVENTORY (5) ---- Ion Engine Structural Scanner Peak State ------------ > --- POWER ------------ Improved Ion Engine > --- PROPULSION ------- Light Treads Light Treads > --- UTILITY ---------- Large Storage Unit Shock Absorption System > --- WEAPON ----------- Shotgun Shotgun > --- INVENTORY -------- Ion Engine Flight Unit Flight Unit Flight Unit Flight Unit Structural Scanner Machine Analyzer Sensor Array Medium Armor Plating Hardened Light Armor Plating Hardened Light Armor Plating Hardened Light Armor Plating Shotgun Hammer [Rating: 15] Favorites ----------- Power Light Ion Engine Engine Light Ion Engine Propulsion Light Treads Treads Light Treads Leg Aluminum Leg Flight Unit Flight Unit Utility Large Storage Unit Device Shock Absorption System Storage Large Storage Unit Processor Launcher Guidance Computer Protection Medium Armor Plating Weapon Shotgun Energy Gun Small Laser Ballistic Gun Shotgun Launcher Grenade Launcher Build | -11 -10 -10 ------- Run | Yrd Mat Min Slots Evolved . | . . . Power . | . . . Propulsion . | . . . Utility . | . . . Weapon . | . . . Parts Attached 33 | 3 12 18 Power 2 | . 1 1 Engine 2 | . 1 1 Core . | . . . Reactor . | . . . Propulsion 7 | 2 . 5 Treads 3 | 2 . 1 Leg . | . . . Wheel . | . . . Hover . | . . . Flight 4 | . . 4 Utility 14 | . 7 7 Device 2 | . 1 1 Storage 3 | . 2 1 Processor 1 | . . 1 Hackware . | . . . Protection 8 | . 4 4 Artifact . | . . . Weapon 10 | 1 4 5 Energy Gun 1 | 1 . . Energy Cannon . | . . . Ballistic Gun 7 | . 4 3 Ballistic Cannon . | . . . Launcher 2 | . . 2 Special Weapon . | . . . Impact Weapon . | . . . Slashing Weapon . | . . . Piercing Weapon . | . . . Special Melee Weapon . | . . . Unidentified Prototypes . | . . . Parts Lost 10 | . . 10 Power 1 | . . 1 Propulsion 4 | . . 4 Utility 1 | . . 1 Weapon 4 | . . 4 Highest Loss Streak 10 | . . 10 To Critical Strikes . | . . . Average Slot Usage (%) 95 | . 98 90 Engine 13 | . 14 12 Treads 25 | . 28 21 Flight 1 | . . 3 Storage 13 | . 14 11 Protection 13 | . 13 13 Energy Gun 1 | . 1 . Ballistic Gun 24 | . 26 21 Launcher 1 | . . 4 Naked Turns . | . . . Heaviest Build 38 | 11 38 38 Greatest Support 40 | 40 40 40 Greatest Overweight (x) 3 | . . 3 Average Overweight (x) . | . . . Largest Inventory Capacity 15 | 8 15 15 Average Capacity 13 | 8 13 13 Most Carried 15 | 6 15 15 Average Carried 12 | 6 13 12 Final Capacity 15 | 8 15 5 Final Carried 15 | 6 15 2 Class Distribution -------------------- 100% | Mutant Dominant Class ---------------- Mutant | -10/Materials Mutant | -10/Mines Resources | -11 -10 -10 ----------- Run | Yrd Mat Min Matter Collected 849 | 230 311 308 Remotely . | . . . Salvage Created 591 | 25 387 179 Parts 33 | 2 23 8 Haulers Intercepted . | . . . Recyclers Shooed . | . . . Parts Field Recycled . | . . . Retrieved Matter . | . . . Parts Self-Destructed . | . . . Prevented . | . . . Kills | -11 -10 -10 ------- Run | Yrd Mat Min Combat Hostiles Destroyed 26 | . 10 16 Guns 19 | . 10 9 AOE 7 | . . 7 Classes Destroyed 10 | 1 6 3 Builder 1 | . . 1 Tunneler 1 | 1 . . Recycler 2 | . 1 1 Mechanic 1 | . 1 . Operator 1 | . 1 . Watcher 1 | . 1 . Swarmer 3 | . 3 . Grunt 7 | . 7 . Demolisher 1 | . . 1 Assembled 15 | . . 15 Best Kill Streak 10 | 1 3 10 Combat Bots Only 7 | . 3 7 Max Kills in Single Turn 2 | 1 1 2 Gunslinging . | . . . Exploded 2 | . . 2 Melee . | . . . Uniques/NPCs Destroyed . | . . . Combat | -11 -10 -10 -------- Run | Yrd Mat Min Hostile Shots Fired 137 | . 31 106 Missed 23 | . 4 19 Damage Taken 1502 | . 283 1219 Core 256 | . 10 246 Absorbed by Shields . | . . . Core Remaining (%) 100 | 100 . . Volleys Fired 86 | 1 33 52 Largest 2 | 2 2 2 Hottest 90 | 90 46 53 Shots Fired 142 | 2 66 74 Gun 130 | 2 66 62 Cannon . | . . . Launcher 12 | . . 12 Special . | . . . Kinetic 128 | . 66 62 Thermal 2 | 2 . . Explosive 12 | . . 12 Electromagnetic . | . . . Robot Hit Streak 11 | 1 11 7 Robot Miss Streak 5 | . 4 5 Penetration Max . | . . . Secondary Targets 1 | . . 1 Max Gunslinging Chain 1 | . . 1 Shots Hit Robots 101 | 1 54 46 Core Hits 61 | 1 26 34 Critical Kills 2 | . 1 1 Critical Parts Destroyed 2 | . 1 1 Critical Strikes 5 | 1 2 2 Burn 1 | 1 . . Destroy 4 | . 2 2 Melee Attacks . | . . . Impact . | . . . Slashing . | . . . Piercing . | . . . Sneak Attacks . | . . . Combat Hostiles . | . . . Follow-up Attacks . | . . . Damage Inflicted 2135 | 13 817 1305 Guns 1459 | 13 817 629 Cannons . | . . . Explosions 676 | . . 676 Melee . | . . . Ramming . | . . . Kinetic 1446 | . 817 629 Thermal 13 | 13 . . Explosive 676 | . . 676 Electromagnetic . | . . . Impact . | . . . Slashing . | . . . Piercing . | . . . Highest Corruption . | . . . Average Corruption . | . . . Corruption Purged . | . . . Corruption Blocked . | . . . Overload Shots . | . . . Overflow Damage 15 | . . 15 Projectiles . | . . . Explosions 15 | . . 15 Melee . | . . . Knockbacks . | . . . Impact . | . . . Kinetic . | . . . Secondary . | . . . Self-Inflicted Damage . | . . . Shots . | . . . Rammed . | . . . Targets Rammed . | . . . Kicked . | . . . Crushed . | . . . Highest Temperature 101 | 30 24 101 Average Temperature 25 | 18 10 36 Received Heat Transfer 203 | . 123 80 Siege Activations . | . . . Robots Corrupted . | . . . Combat Hostiles . | . . . Parts Fried . | . . . Impact Corruptions . | . . . Robots Melted . | . . . Combat Hostiles . | . . . Parts Melted . | . . . Heat Transferred 111 | 111 . . Parts Sabotaged . | . . . Parts Stolen . | . . . Parts Stripped . | . . . Power Chain Reactions . | . . . Alert | -11 -10 -10 ------- Run | Yrd Mat Min Peak Influence 194 | 5 194 89 Initial 16 | . 3 16 Average 69 | 2 90 36 Maximum Alert Level . | . . . Low Security (%) 100 | 100 100 100 Level 1 . | . . . Level 2 . | . . . Level 3 . | . . . Level 4 . | . . . Level 5 . | . . . High Security . | . . . Max Security . | . . . Squads Dispatched 2 | . 2 . Investigation 1 | . 1 . Extermination . | . . . Reinforcement 1 | . 1 . Assault . | . . . Garrison . | . . . Intercept . | . . . Searches Triggered . | . . . Construction Impeded . | . . . Haulers Reinforced . | . . . Active Scanning Responses . | . . . Cargo Convoy Interrupts . | . . . Stealth | -11 -10 -10 --------- Run | Yrd Mat Min Distress Signals . | . . . Communications Jammed . | . . . Distress Signals . | . . . Times Spotted 38 | . 18 20 Peak Tracking Total 5 | . 3 5 Tactical Retreats 6 | . 2 4 Traps | -11 -10 -10 ------- Run | Yrd Mat Min Traps Triggered . | . . . Indirectly . | . . . Trap Hack Attempts . | . . . Triggered . | . . . Disarmed . | . . . Reprogrammed . | . . . Reused . | . . . Traps Extracted . | . . . Installed . | . . . Triggered . | . . . Machines | -11 -10 -10 ---------- Run | Yrd Mat Min Machines Disabled . | . . . Max in Single Turn . | . . . Machines Repaired . | . . . Machines Dismantled . | . . . Machines Sabotaged . | . . . Overloaded Fab Kills . | . . . Hacking | -11 -10 -10 --------- Run | Yrd Mat Min Machines Accessed 4 | . 4 . Terminals 3 | . 3 . Fabricators . | . . . Repair Stations . | . . . Recycling Units 1 | . 1 . Scanalyzers . | . . . Garrison Access . | . . . Total Hacks 11 | . 11 . Successful 6 | . 6 . Failed 5 | . 5 . Catastrophic . | . . . Database Lockouts . | . . . Manual 7 | . 7 . Terminals 8 | . 8 . Fabricators . | . . . Repair Stations . | . . . Recycling Units 3 | . 3 . Scanalyzers . | . . . Garrison Access . | . . . Terminal Hacks 1 | . 1 . Locate Traps 1 | . 1 . Fabricator Hacks . | . . . Repair Station Hacks . | . . . Recycling Unit Hacks 2 | . 2 . Report Inventory 1 | . 1 . Retrieve Components 1 | . 1 . Scanalyzer . | . . . Garrison Access Hacks . | . . . Unauthorized Hacks 3 | . 3 . Terminals 2 | . 2 . Botnet 1 | . 1 . Operators 1 | . 1 . Fabricators . | . . . Repair Stations . | . . . Recycling Units 1 | . 1 . Tunnel 1 | . 1 . Scanalyzers . | . . . Garrison Access . | . . . Data Cores Recovered . | . . . Used . | . . . Hacking Detections 4 | . 4 . Full Trace Events . | . . . Feedback Events . | . . . Feedback Blocked . | . . . Robot Schematics Acquired . | . . . Robots Built . | . . . Authchips . | . . . Time . | . . . Total Robot Build Rating . | . . . Part Schematics Acquired . | . . . Parts Built . | . . . Authchips . | . . . Time . | . . . Total Part Build Rating . | . . . Parts Repaired . | . . . Time . | . . . Parts Recycled . | . . . Recycled Matter . | . . . Retrieved Matter . | . . . Retrieved Components 2 | . 2 . Parts Scanalyzed . | . . . Part Schematics Acquired . | . . . Parts Damaged . | . . . Bothacking | -11 -10 -10 ------------ Run | Yrd Mat Min Used RIF Installer . | . . . Robots Hacked . | . . . Non-combat . | . . . Combat . | . . . Robot Hacks Applied . | . . . Relay Couplers Released . | . . . Fabnet Peak Effective % . | . . . Robots Rewired . | . . . Allies Hacked . | . . . Hacks Repelled . | . . . Allies | -11 -10 -10 -------- Run | Yrd Mat Min Total Allies . | . . . Largest Group . | . . . Highest-Rated Group . | . . . Highest-Rated Ally . | . . . Total Orders . | . . . Ally Attacks . | . . . Total Damage . | . . . Kills . | . . . Allies Corrupted . | . . . Allies Melted . | . . . Intel | -11 -10 -10 ------- Run | Yrd Mat Min Robot Analysis Total . | . . . Derelict Logs Recovered . | . . . Drone Launches . | . . . Drone Recoveries . | . . . Exploration | -11 -10 -10 ------------- Run | Yrd Mat Min Turns Passed 1383 | 27 860 496 Spaces Moved 629 | 13 401 215 Core 8 | . . 8 Treads 598 | 13 401 184 Legs . | . . . Wheels . | . . . Hover . | . . . Flight 23 | . . 23 Fastest Speed 37 | 160 160 37 Average Speed 156 | 160 160 148 Slowest Speed 280 | 160 160 280 Overloaded Moves . | . . . Propulsion Burnouts . | . . . Robots Hopped . | . . . Cave-ins Triggered . | . . . Exploration Rate (%) 25 | 2 41 34 Regions Visited 2 Branch Regions 1 Pre-discovered Areas 1 | . 1 . Known Exits Taken . | . . . Unknown Exits Taken 2 | 1 1 . Scrap Searched . | . . . Spaces Dug . | . . . Terrain Destroyed 78 | . . 78 Melee . | . . . Projectile . | . . . AOE 78 | . . 78 Terrain Rammed . | . . . Walls Destroyed . | . . . Machines Disabled . | . . . Actions | -11 -10 -10 --------- Run | Yrd Mat Min Total 893 | 16 560 317 Wait 103 | . 80 23 Move 627 | 12 400 215 Hop . | . . . Pick Up 17 | . 17 . Fast Attach 13 | . 7 6 Attach 5 | . . 5 Detach . | . . . Swap 15 | 3 5 7 Drop 27 | . 18 9 Fire 86 | 1 33 52 Melee . | . . . Ram . | . . . Kick . | . . . Crush . | . . . Escape Stasis . | . . . Rewire . | . . . Trap . | . . . Miscellaneous . | . . . Route ------- -11/Scrapyard -10/Materials (discovered 2 exits: [*Mat] / [*Min]) -10/Mines (discovered 1 exit: [*Mat]) History --------- Turn | Location | Event 6 | -11/Scrapyard | Discovered new exit (range 1) 28 | -11/Scrapyard | Entered Materials 315 | -10/Materials | Build established: Mutant 626 | -10/Materials | Discovered new exit (range 9) 817 | -10/Materials | Discovered new exit (range 8) 888 | -10/Materials | Entered Mines 893 | -10/Mines | Joined a pair of Derelicts in attacking an 0b10 outpost 979 | -10/Mines | Discovered new exit (range 8) 1051 | -10/Mines | Assembled infested the area 1252 | -10/Mines | Destroyed 7 combat bots 1308 | -10/Mines | Core integrity fell below 50% 1366 | -10/Mines | Core integrity fell below 20% 1384 | -10/Mines | Destroyed by as-59552 with Assembled Blade Last Messages --------------- 01342_ Acquired Sml. Storage Unit. 01344_ U-05 Engineer builds a Wall. 01345_ as-28089 destroyed. 01352_ Flight Unit destroyed. 01358_ Dropped Sml. Storage Unit. 01358_ Dropped Med. Armor Plating. 01360_ Acquired 18 matter. 01363_ Flight Unit destroyed. 01366_ as-27503 destroyed. [Achievement: Exterminator] 01369_ Acquired 11 matter. 01369_ Acquired 14 matter. 01370_ U-05 Engineer builds a Wall. 01370_ Acquired 5 matter. 01370_ Acquired 13 matter. 01371_ Acquired 3 matter. 01371_ Acquired 6 matter. 01375_ U-05 Engineer builds a Wall. 01380_ as-04696 sneak attacks. 01384_ Shotgun destroyed. Map ----- +----------------------------------------------------+ | | | | | | | ?????????????????????????????????????????????????? | | ?????????????????????????????????????????????????? | | ?????????????????????????????????????????????????? | | ?????????????????????????????????????????????????? | | ??####???????????????????????????????????????????? | | ### ##??????????????????????????????????????????? | | ## ###????????????????????????????????????????? | | ##???????????????????????????????????????? | | #???????????????????????????????????????? | | ##??????????????????????????????????????? | | ### ##???????????????????????*#????????????? | | ####?## ##??????????????????????=#????????????? | | ??????# ##?????????????????###=!##???????????? | | ?????## #???????????????? # = ###?????????? | | ?????# #???????????????? ??????????? | | ?????# #???????????????? ???????????? | | ?????# ##???????######## * #????????????? | | ?????# #####???### ## #=%!! #????????????? | | ?????## ### ##### # # !%= ##???????????? | | ?????# # a # !== #???????????? | | #????# # # # #!* # ##== #???????????? | | ##???### #########=# # a * % #????????????? | | ?????## % ==!!r!= @a #?????????????? | | ???### =!!/!! = # ## #?????????????? | | ##### #########!!# # ##????? #????????????? | | # ! !## #????????????????????? | | """ # # # # ##????????????????????? | | ### """ ######### ####?????????????????????? | | #?# """ ##??????###????????????????????????? | | #?#### #?????????????????????????????????? | | #????# #?????????????????????????????????? | | #???## ## #????????????????????????????????? | | #??## #### #????????????????????????????????? | | #### #??## ##????????????????????????????????? | | #???####?????????????????????????????????? | | ##### ##?####???????????????????????????????????? | | #???####?## ##??????????????????????????????????? | | #???????## ##?????????????????????????????????? | | #??????## #?????????????????????????????????? | | #??##### #?????????????????????????????????? | | #?##]!## #?????????????????????????????????? | | #?#"![ # ##?????????????????????????????????? | | ??#=!* + ##??????????????????????????????????? | | ??#%[!=+ ##???????????????????????????????????? | | ??#"!! # ##????????????????????????????????????? | | ??##[!## #?????????????????????????????????????? | | ???##### #?????????????????????????????????????? | +----------------------------------------------------+ Best States ------------- Heat Dissipation 25 Energy Generation 12 Energy Capacity 265 Matter Stores 300 Matter Capacity 300 Sight Range 16 Terrain Scan Density 10 Armor Coverage 375 Evasion (%) 62 Recoil Reduction 2 Item Schematics ----------------- None Robot Schematics ------------------ None Fabricated ------------ Nothing Alien Tech Used ----------------- None Achievements -------------- Exterminator Challenges ------------ None Game ------ Seed ShadingCoreMallet Manual? 0 Play Time 00:21:58 Cumulative 61.8 hours Start 2024.07.27 @ 22:40:55 End 2024.07.27 @ 23:00:34 Sessions 1 Manual Loads 0 Difficulty Rogue Special Mode None Game No. 39 Rogue 39 Adventurer 0 Explorer 0 Win Type - Total 5 Types 4/0/0/1/0/0/0/0/0 Lore% 48 Gallery% 51 Achievement% 47 Wizard Run 0 Options --------- Layout 1 ASCII 0 Keyboard 0 Movement Mouse Keybinds 0 Fullscreen 1 Font 24/Smallcaps Map View 50x35 Zoom Use 0% Tactical HUD 1 Map Filters NONE Filters NONE Steam 0 RUN: 4d86b732-82d0-47a5-bcaf-88a254c0add7